fUST/lending_fUST_20240915
["ID","MTS","AMOUNT","RATE_DAILY","PERIOD"]
[338231867,1726402239126,-611.61,0.00027396,2]
[338231868,1726402239135,-611.61,0.00027396,2]
[338231869,1726402239145,-611.61,0.00027396,2]
[338231870,1726402239155,-611.61,0.00027396,2]
[338231871,1726402239167,-611.61,0.00027396,2]
[338231872,1726402239177,-611.61,0.00027396,2]
[338231873,1726402239186,-611.61,0.00027396,2]
[338231874,1726402239196,-611.61,0.00027396,2]
[338231875,1726402239206,-22175.60681811,0.00027397,5]
[338231876,1726402239216,-3953.32287989,0.00027397,5]
[338231877,1726402239225,-237.65432099,0.00027397,7]
[338231878,1726402239235,-500.0,0.00027397,5]
[338231879,1726402239245,-501.62261942,0.00027397,5]
[338231880,1726402239255,-503.56428653,0.00027397,5]
[338231881,1726402239265,-500.0,0.00027397,5]
[338231882,1726402239274,-500.0,0.00027397,5]
[338231883,1726402239285,-520.4596342,0.00027397,5]
[338231884,1726402239295,-500.0,0.00027397,5]
[338231885,1726402239306,-1078.27,0.00027397,5]
[338231886,1726402239315,-501.41696664,0.00027397,5]
[338231887,1726402239325,-500.0,0.00027397,5]
[338231888,1726402239335,-500.0,0.00027397,5]
[338231889,1726402239345,-500.0,0.00027397,5]
[338231890,1726402239354,-500.0,0.00027397,5]
[338231891,1726402239363,-500.0,0.00027397,5]
[338231892,1726402239373,-556.55,0.00027397,5]
[338231893,1726402239384,-500.0,0.00027397,5]
[338231894,1726402239393,-500.0,0.00027397,5]
[338231895,1726402239402,-523.94062104,0.00027397,5]
[338231896,1726402239414,-509.78290016,0.00027397,5]
[338231897,1726402239425,-500.0,0.00027397,5]
[338231898,1726402239437,-500.0,0.00027397,5]
[338231899,1726402239447,-500.0,0.00027397,5]
[338231900,1726402239458,-500.0,0.00027397,5]
[338231901,1726402239471,-505.39812906,0.00027397,5]
[338231902,1726402239481,-1477.07,0.00027397,5]
[338231903,1726402239490,-693.19,0.00027397,5]
[338231904,1726402239500,-527.49,0.00027397,5]
[338231905,1726402239510,-500.0,0.00027397,5]
[338231906,1726402239519,-500.0,0.00027397,5]
[338231907,1726402239530,-500.0,0.00027397,5]
[338231908,1726402239540,-500.0,0.00027397,5]
[338231909,1726402239552,-500.0,0.00027397,5]
[338231910,1726402239562,-737.38,0.00027397,5]
[338231911,1726402239572,-500.0,0.00027397,5]
[338231912,1726402239583,-500.0,0.00027397,5]
[338231913,1726402239592,-500.0,0.00027397,5]
[338231914,1726402239601,-500.0,0.00027397,5]
[338231915,1726402239613,-500.0,0.00027397,5]
[338231916,1726402239624,-500.0,0.00027397,5]
[338231917,1726402239636,-500.0,0.00027397,5]
[338231918,1726402239646,-500.0,0.00027397,5]
[338231919,1726402239658,-500.0,0.00027397,5]
[338231920,1726402239668,-500.0,0.00027397,5]
[338231921,1726402239679,-507.78136299,0.00027397,5]
[338231922,1726402239688,-504.00145231,0.00027397,5]
[338231923,1726402239699,-500.0,0.00027397,5]
[338231924,1726402239710,-500.74651227,0.00027397,5]
[338231925,1726402239721,-500.0,0.00027397,5]
[338231926,1726402239732,-500.0,0.00027397,5]
[338231927,1726402239742,-500.0,0.00027397,5]
[338231928,1726402239754,-500.0,0.00027397,5]
[338231929,1726402239764,-500.0,0.00027397,5]
[338231930,1726402239775,-500.0,0.00027397,5]
[338231931,1726402239785,-554.67445255,0.00027397,5]
[338231932,1726402239795,-500.0,0.00027397,5]
[338231933,1726402239804,-500.0,0.00027397,5]
[338231934,1726402239814,-500.0,0.00027397,5]
[338231935,1726402239823,-500.0,0.00027397,5]
[338231936,1726402239833,-689.17,0.00027397,5]
[338231937,1726402239842,-500.0,0.00027397,5]
[338231938,1726402239851,-507.3673419,0.00027397,5]
[338231939,1726402239860,-500.0,0.00027397,5]
[338231940,1726402239869,-500.0,0.00027397,5]
[338231941,1726402239878,-500.0,0.00027397,5]
[338231942,1726402239888,-500.0,0.00027397,5]
[338231943,1726402239897,-500.0,0.00027397,5]
[338231944,1726402239906,-764.59,0.00027397,5]
[338231945,1726402239915,-500.0,0.00027397,5]
[338231946,1726402239924,-502.36938541,0.00027397,5]
[338231947,1726402239933,-500.0,0.00027397,5]
[338231948,1726402239942,-500.0,0.00027397,5]
[338231949,1726402239952,-500.0,0.00027397,5]
[338231950,1726402239961,-500.0,0.00027397,5]
[338231951,1726402239972,-500.0,0.00027397,5]
[338231952,1726402239982,-1343.47,0.00027397,5]
[338231953,1726402239993,-501.4034523,0.00027397,5]
[338231954,1726402240003,-500.0,0.00027397,5]
[338231955,1726402240014,-500.0,0.00027397,5]
[338231956,1726402240024,-500.0,0.00027397,5]
[338231957,1726402240035,-500.0,0.00027397,5]
[338231958,1726402240045,-501.47298852,0.00027397,5]
[338231959,1726402240056,-151.0,0.00027397,7]
[338231960,1726402240066,-500.0,0.00027397,5]
[338231961,1726402240077,-151.0,0.00027397,7]
[338231962,1726402240087,-151.0,0.00027397,7]
[338231964,1726402240097,-501.72717407,0.00027397,5]
[338231966,1726402240107,-504.67,0.00027397,5]
[338231968,1726402240116,-636.52,0.00027397,2]
[338231970,1726402240127,-933.34,0.00027397,5]
[338231972,1726402240137,-500.57206471,0.00027397,5]
[338231974,1726402240147,-500.0,0.00027397,5]
[338231975,1726402240157,-503.39234067,0.00027397,5]
[338231977,1726402240166,-681.08,0.00027397,5]
[338231979,1726402240176,-506.59159184,0.00027397,5]
[338231981,1726402240185,-765.96,0.00027397,5]
[338231983,1726402240196,-500.0,0.00027397,5]
[338231985,1726402240206,-702.1,0.00027397,5]
[338231987,1726402240216,-500.0,0.00027397,5]
[338231989,1726402240225,-500.72693901,0.00027397,5]
[338231991,1726402240234,-503.65,0.00027397,5]
[338231993,1726402240244,-500.0,0.00027397,5]
[338231995,1726402240253,-506.51086386,0.00027397,5]
[338231997,1726402240263,-504.44520593,0.00027397,5]
[338231999,1726402240272,-507.52964981,0.00027397,5]
[338232001,1726402240282,-500.0,0.00027397,5]
[338232003,1726402240292,-500.0,0.00027397,5]
[338232005,1726402240302,-500.0,0.00027397,5]
[338232007,1726402240313,-3634.69,0.00027397,5]
[338232009,1726402240322,-1024.36,0.00027397,5]
[338232011,1726402240331,-506.57411326,0.00027397,5]
[338232014,1726402240341,-500.0,0.00027397,5]
[338232016,1726402240350,-506.45990338,0.00027397,5]
[338232018,1726402240360,-500.0,0.00027397,5]
[338232020,1726402240369,-151.0,0.00027397,7]
[338232022,1726402240379,-500.0,0.00027397,5]
[338232024,1726402240389,-151.0,0.00027397,7]
[338232043,1726402240581,-151.0,0.00027397,7]
[338232045,1726402240599,-289.08923287,0.00027397,5]
[338232046,1726402240625,-210.91076713,0.00027397,5]
[338232047,1726402240635,-500.0,0.00027397,5]
[338232048,1726402240647,-501.8373205,0.00027397,5]
[338232049,1726402240660,-151.0,0.00027397,7]
[338232050,1726402240671,-151.0,0.00027397,7]
[338232051,1726402240682,-151.0,0.00027397,7]
[338232052,1726402240692,-151.0,0.00027397,7]
[338232053,1726402240701,-151.0,0.00027397,7]
[338232054,1726402240711,-500.0,0.00027397,5]
[338232055,1726402240721,-3672.32,0.00027397,5]
[338232056,1726402240731,-151.0,0.00027397,7]
[338232057,1726402240740,-151.0,0.00027397,7]
[338232058,1726402240749,-151.0,0.00027397,7]
[338232059,1726402240759,-151.0,0.00027397,7]
[338232060,1726402240769,-151.0,0.00027397,7]
[338232061,1726402240778,-500.0,0.00027397,5]
[338232062,1726402240787,-268.050289,0.00027397,7]
[338232063,1726402240797,-500.0,0.00027397,5]
[338232064,1726402240806,-500.0,0.00027397,5]
[338232065,1726402240816,-500.0,0.00027397,5]
[338232066,1726402240825,-3839.73,0.00027397,5]
[338232067,1726402240835,-1550.17,0.00027397,5]
[338232068,1726402240844,-546.62386177,0.00027397,5]
[338232069,1726402240854,-948.32,0.00027397,5]
[338232070,1726402240863,-293.82327538,0.00027397,5]
[338232071,1726402240872,-1433.16,0.00027397,5]
[338232072,1726402240882,-709.78,0.00027397,5]
[338232073,1726402240892,-541.83652656,0.00027397,5]
[338232074,1726402240902,-519.22606464,0.00027397,5]
[338232075,1726402240911,-500.0,0.00027397,5]
[338232076,1726402240921,-500.0,0.00027397,5]
[338232077,1726402240931,-198.94726069,0.00027397,5]
[338232078,1726402240945,-407.68273931,0.00027397,5]
[338232079,1726402240954,-500.0,0.00027397,5]
[338232080,1726402240964,-846.81,0.00027397,5]
[338232081,1726402240977,-623.24,0.00027397,5]
[338232082,1726402240988,-3081.98,0.00027397,5]
[338232083,1726402240997,-515.82661085,0.00027397,5]
[338232084,1726402241008,-500.0,0.00027397,5]
[338232085,1726402241018,-500.0,0.00027397,5]
[338232086,1726402241030,-3122.95,0.00027397,5]
[338232087,1726402241039,-503.03726709,0.00027397,5]
[338232088,1726402241051,-151.0,0.00027397,7]
[338232089,1726402241061,-151.0,0.00027397,7]
[338232090,1726402241070,-507.97962719,0.00027397,5]
[338232091,1726402241079,-500.0,0.00027397,5]
[338232092,1726402241089,-151.0,0.00027397,7]
[338232093,1726402241098,-505.32055159,0.00027397,5]
[338232094,1726402241108,-151.0,0.00027397,7]
[338232095,1726402241119,-151.0,0.00027397,7]
[338232096,1726402241130,-500.0,0.00027397,5]
[338232097,1726402241141,-151.0,0.00027397,7]
[338232098,1726402241151,-151.0,0.00027397,7]
[338232099,1726402241161,-151.0,0.00027397,7]
[338232100,1726402241172,-151.0,0.00027397,7]
[338232101,1726402241183,-500.0,0.00027397,5]
[338232102,1726402241195,-151.0,0.00027397,7]
[338232103,1726402241205,-151.0,0.00027397,7]
[338232104,1726402241215,-1435.76,0.00027397,2]
[338232105,1726402241225,-500.0,0.00027397,5]
[338232106,1726402241235,-151.0,0.00027397,7]
[338232107,1726402241244,-151.0,0.00027397,7]
[338232108,1726402241254,-151.0,0.00027397,7]
[338232109,1726402241263,-151.0,0.00027397,7]
[338232110,1726402241273,-500.0,0.00027397,5]
[338232111,1726402241284,-500.0,0.00027397,5]
[338232113,1726402241293,-500.0,0.00027397,5]
[338232114,1726402241304,-500.0,0.00027397,5]
[338232115,1726402241315,-500.0,0.00027397,5]
[338232116,1726402241325,-500.0,0.00027397,5]
[338232117,1726402241335,-1281.4878383,0.00027397,5]
[338232119,1726402241551,-214.7821617,0.00027397,5]
[338232121,1726402241560,-500.0,0.00027397,5]
[338232123,1726402241570,-500.0,0.00027397,5]
[338232125,1726402241581,-500.0,0.00027397,5]
[338232126,1726402241591,-500.0,0.00027397,5]
[338232128,1726402241600,-1283.33,0.00027397,5]
[338232130,1726402241611,-534.03,0.00027397,5]
[338232132,1726402241623,-500.0,0.00027397,5]
[338232134,1726402241633,-500.0,0.00027397,5]
[338232136,1726402241642,-500.0,0.00027397,5]
[338232137,1726402241652,-1283.52,0.00027397,5]
[338232138,1726402241662,-500.0,0.00027397,5]
[338232139,1726402241671,-500.0,0.00027397,5]
[338232140,1726402241680,-500.0,0.00027397,5]
[338232141,1726402241691,-504.60286213,0.00027397,5]
[338232142,1726402241701,-514.02591287,0.00027397,5]
[338232143,1726402241712,-500.0,0.00027397,5]
[338232144,1726402241725,-1133.29,0.00027397,5]
[338232145,1726402241736,-500.0,0.00027397,5]
[338232146,1726402241746,-702.53,0.00027397,5]
[338232147,1726402241757,-500.0,0.00027397,5]
[338232148,1726402241766,-723.51,0.00027397,5]
[338232149,1726402241776,-500.0,0.00027397,5]
[338232150,1726402241786,-500.0,0.00027397,5]
[338232151,1726402241797,-500.0,0.00027397,5]
[338232152,1726402241807,-151.0,0.00027397,7]
[338232153,1726402241817,-151.0,0.00027397,7]
[338232154,1726402241829,-500.0,0.00027397,5]
[338232155,1726402241841,-151.0,0.00027397,7]
[338232156,1726402241852,-151.0,0.00027397,7]
[338232157,1726402241862,-151.0,0.00027397,7]
[338232158,1726402241873,-285.1884437,0.00027397,5]
[338232159,1726402241884,-151.0,0.00027397,7]
[338232160,1726402241894,-151.0,0.00027397,7]
[338232161,1726402241905,-500.0,0.00027397,5]
[338232162,1726402241915,-245.972117,0.00027397,7]
[338232163,1726402241925,-508.75,0.00027397,5]
[338232164,1726402241934,-500.0,0.00027397,5]
[338232165,1726402241943,-763.76,0.00027397,5]
[338232166,1726402241953,-500.0,0.00027397,5]
[338232167,1726402241962,-503.21866474,0.00027397,5]
[338232168,1726402241973,-946.33,0.00027397,5]
[338232169,1726402241982,-502.63462837,0.00027397,5]
[338232170,1726402241991,-500.0,0.00027397,5]
[338232171,1726402242001,-500.0,0.00027397,5]
[338232172,1726402242010,-1489.54,0.00027397,5]
[338232173,1726402242019,-500.0,0.00027397,5]
[338232174,1726402242030,-500.0,0.00027397,5]
[338232175,1726402242042,-500.0,0.00027397,5]
[338232176,1726402242052,-567.4,0.00027397,5]
[338232177,1726402242063,-500.0,0.00027397,5]
[338232178,1726402242072,-204.30020038,0.00027397,5]
[338232179,1726402242081,-468.51244069,0.00027397,5]
[338232180,1726402242091,-500.0,0.00027397,5]
[338232181,1726402242101,-500.0,0.00027397,5]
[338232182,1726402242112,-732.81,0.00027397,5]
[338232183,1726402242122,-500.0,0.00027397,5]
[338232184,1726402242131,-151.0,0.00027397,7]
[338232185,1726402242141,-151.0,0.00027397,7]
[338232186,1726402242150,-833.67,0.00027397,5]
[338232187,1726402242159,-151.0,0.00027397,7]
[338232188,1726402242170,-151.0,0.00027397,7]
[338232189,1726402242180,-151.0,0.00027397,7]
[338232190,1726402242189,-151.0,0.00027397,7]
[338232191,1726402242198,-151.0,0.00027397,7]
[338232192,1726402242208,-151.0,0.00027397,7]
[338232193,1726402242218,-151.0,0.00027397,7]
[338232194,1726402242227,-153.319818,0.00027397,7]
[338232195,1726402242238,-151.0,0.00027397,7]
[338232196,1726402242247,-500.0,0.00027397,5]
[338232197,1726402242256,-151.0,0.00027397,7]
[338232198,1726402242265,-500.0,0.00027397,5]
[338232199,1726402242275,-151.0,0.00027397,7]
[338232200,1726402242284,-151.0,0.00027397,7]
[338232201,1726402242293,-151.0,0.00027397,7]
[338232202,1726402242302,-500.0,0.00027397,5]
[338232203,1726402242312,-151.0,0.00027397,7]
[338232204,1726402242321,-500.0,0.00027397,5]
[338232205,1726402242330,-500.0,0.00027397,5]
[338232206,1726402242340,-690.45,0.00027397,5]
[338232207,1726402242349,-1932.33,0.00027397,5]
[338232208,1726402242358,-151.0,0.00027397,7]
[338232209,1726402242367,-500.0,0.00027397,5]
[338232210,1726402242376,-213.859997,0.00027397,7]
[338232211,1726402242386,-479.61011942,0.00027397,5]
[338232212,1726402242396,-592.91,0.00027397,5]
[338232213,1726402242406,-500.0,0.00027397,5]
[338232214,1726402242416,-219.76,0.00027397,5]
[338232215,1726402242425,-500.0,0.00027397,5]
[338232216,1726402242437,-500.0,0.00027397,120]
[338232217,1726402242446,-906.36,0.00027397,5]
[338232218,1726402242457,-500.0,0.00027397,5]
[338232219,1726402242466,-1940.75,0.00027397,5]
[338232220,1726402242476,-1028.26,0.00027397,5]
[338232221,1726402242485,-583.86,0.00027397,5]
[338232222,1726402242494,-500.0,0.00027397,5]
[338232223,1726402242503,-500.0,0.00027397,5]
[338232224,1726402242512,-500.0,0.00027397,5]
[338232225,1726402242522,-500.0,0.00027397,5]
[338232226,1726402242533,-500.0,0.00027397,5]
[338232227,1726402242542,-500.0,0.00027397,5]
[338232228,1726402242552,-500.0,0.00027397,5]
[338232229,1726402242563,-500.0,0.00027397,5]
[338232230,1726402242573,-500.0,0.00027397,5]
[338232231,1726402242583,-733.74,0.00027397,5]
[338232232,1726402242593,-779.35,0.00027397,5]
[338232233,1726402242605,-506.04911572,0.00027397,5]
[338232234,1726402242617,-500.0,0.00027397,5]
[338232235,1726402242627,-500.0,0.00027397,5]
[338232236,1726402242639,-500.0,0.00027397,5]
[338232237,1726402242650,-500.0,0.00027397,5]
[338232238,1726402242660,-151.0,0.00027397,7]
[338232239,1726402242671,-151.0,0.00027397,7]
[338232240,1726402242683,-151.0,0.00027397,7]
[338232241,1726402242695,-211.089253,0.00027397,7]
[338232242,1726402242707,-877.92,0.00027397,5]
[338232243,1726402242719,-500.0,0.00027397,5]
[338232244,1726402242729,-992.74,0.00027397,5]
[338232245,1726402242739,-500.0,0.00027397,5]
[338232246,1726402242748,-500.0,0.00027397,5]
[338232247,1726402242760,-500.0,0.00027397,5]
[338232248,1726402242771,-500.0,0.00027397,5]
[338232249,1726402242783,-500.0,0.00027397,5]
[338232250,1726402242794,-500.0,0.00027397,5]
[338232251,1726402242805,-418.63734554,0.00027397,5]
[338232254,1726402243480,-81.36265446,0.00027397,5]
[338232255,1726402243490,-151.0,0.00027397,7]
[338232256,1726402243501,-500.0,0.00027397,5]
[338232257,1726402243511,-151.0,0.00027397,7]
[338232258,1726402243521,-151.0,0.00027397,7]
[338232259,1726402243531,-1032.19,0.00027397,5]
[338232260,1726402243541,-151.0,0.00027397,7]
[338232261,1726402243553,-500.0,0.00027397,5]
[338232262,1726402243564,-500.0,0.00027397,5]
[338232263,1726402243574,-151.0,0.00027397,7]
[338232264,1726402243585,-151.0,0.00027397,7]
[338232265,1726402243596,-500.0,0.00027397,5]
[338232266,1726402243606,-710.5,0.00027397,5]
[338232267,1726402243618,-151.0,0.00027397,7]
[338232268,1726402243629,-151.0,0.00027397,7]
[338232269,1726402243642,-500.0,0.00027397,5]
[338232270,1726402243653,-240.713376,0.00027397,7]
[338232271,1726402243662,-151.0,0.00027397,7]
[338232272,1726402243673,-151.0,0.00027397,7]
[338232273,1726402243683,-500.0,0.00027397,5]
[338232274,1726402243692,-151.0,0.00027397,7]
[338232275,1726402243701,-151.0,0.00027397,7]
[338232276,1726402243711,-151.0,0.00027397,7]
[338232277,1726402243720,-800.37,0.00027397,5]
[338232278,1726402243729,-500.0,0.00027397,5]
[338232279,1726402243738,-151.0,0.00027397,7]
[338232280,1726402243748,-500.0,0.00027397,5]
[338232281,1726402243757,-816.52,0.00027397,5]
[338232282,1726402243767,-192.56526,0.00027397,7]
[338232283,1726402243776,-500.0,0.00027397,5]
[338232284,1726402243786,-500.0,0.00027397,5]
[338232285,1726402243796,-500.0,0.00027397,5]
[338232286,1726402243807,-500.0,0.00027397,5]
[338232287,1726402243816,-1632.18,0.00027397,5]
[338232288,1726402243825,-1632.18,0.00027397,5]
[338232289,1726402243836,-500.0,0.00027397,5]
[338232290,1726402243847,-1632.18,0.00027397,5]
[338232291,1726402243856,-1632.18,0.00027397,5]
[338232292,1726402243867,-1632.18,0.00027397,5]
[338232293,1726402243877,-500.0,0.00027397,5]
[338232294,1726402243886,-1632.18,0.00027397,5]
[338232295,1726402243898,-1632.18,0.00027397,5]
[338232296,1726402243907,-1632.18,0.00027397,5]
[338232297,1726402243919,-500.0,0.00027397,5]
[338232298,1726402243929,-1632.18,0.00027397,5]
[338232299,1726402243938,-1632.18,0.00027397,5]
[338232300,1726402243947,-1632.18,0.00027397,5]
[338232301,1726402243956,-1632.18,0.00027397,5]
[338232302,1726402243966,-1632.18,0.00027397,5]
[338232303,1726402243975,-1632.18,0.00027397,5]
[338232304,1726402243985,-151.0,0.00027397,7]
[338232305,1726402243994,-1632.18,0.00027397,5]
[338232306,1726402244003,-166.522885,0.00027397,7]
[338232307,1726402244012,-581.91,0.00027397,5]
[338232308,1726402244022,-1632.18,0.00027397,5]
[338232309,1726402244031,-1632.18,0.00027397,5]
[338232310,1726402244041,-1632.18,0.00027397,5]
[338232311,1726402244050,-500.0,0.00027397,5]
[338232312,1726402244059,-1632.18,0.00027397,5]
[338232313,1726402244069,-1632.18,0.00027397,5]
[338232314,1726402244078,-1518.03306114,0.00027397,5]
[338232315,1726402244189,-114.14693886,0.00027397,5]
[338232316,1726402244198,-1632.18,0.00027397,5]
[338232317,1726402244208,-1083.25306114,0.00027397,5]
[338232335,1726402316191,185.99964,0.00013699,2]
[338232358,1726403353147,-178.69202964,0.00021,2]
[338232359,1726403353169,-150.0,0.00021,2]
[338232360,1726403353193,-680.34336862,0.00022816,2]
[338232399,1726403432607,-183.79302,0.00021652,2]
[338232401,1726403432617,-2140.45572515,0.00022816,2]
[338232407,1726403432666,-179.20090623,0.00022816,2]
[338232408,1726403432676,-374.85,0.00023,10]
[338232410,1726403432685,-189.156212,0.00023306,2]
[338232412,1726403432694,-189.156212,0.0002337,2]
[338232414,1726403432704,-189.156212,0.00023434,2]
[338232416,1726403432713,-189.156212,0.00023498,2]
[338232418,1726403432722,-189.156212,0.00023562,2]
[338232420,1726403432731,-189.156212,0.00023626,2]
[338232421,1726403432740,-189.156212,0.0002369,2]
[338232422,1726403432749,-189.156212,0.00023754,2]
[338232424,1726403432758,-189.156212,0.00023818,2]
[338232425,1726403432767,-189.156212,0.00023881,2]
[338232427,1726403432776,-189.156212,0.00023945,2]
[338232429,1726403432785,-189.156212,0.00024009,2]
[338232430,1726403432794,-189.156212,0.00024073,2]
[338232431,1726403432803,-157.09926174,0.00024099,2]
[338232432,1726403432811,-163.336442,0.0002412,2]
[338232433,1726403432820,-189.156212,0.00024137,2]
[338232434,1726403432829,-300.0,0.00024145,2]
[338232435,1726403432838,-300.0,0.00024145,2]
[338232436,1726403432847,-275.26817352,0.00024145,10]
[338232437,1726403432856,-18993.05824851,0.00024146,2]
[338232562,1726403440621,-5906.94175149,0.00024146,2]
[338232564,1726403440631,-1289.314575,0.00024199,2]
[338232566,1726403440641,-189.156212,0.00024201,2]
[338232568,1726403440650,-189.156212,0.00024265,2]
[338232570,1726403440661,-189.156212,0.00024329,2]
[338232572,1726403440671,-189.156212,0.00024393,2]
[338232599,1726403440965,-189.156212,0.00024457,2]
[338232601,1726403440976,-189.156212,0.00024521,2]
[338232603,1726403440986,-168.0,0.00024932,2]
[338232605,1726403440997,-168.0,0.00025,2]
[338232608,1726403441010,-157.09926174,0.00025515,2]
[338232610,1726403441022,-168.0,0.0002589,2]
[338232612,1726403441032,-290.885884,0.00026492,2]
[338232615,1726403441044,-845.286893,0.00026492,2]
[338232617,1726403441056,-436.328826,0.00026492,2]
[338232619,1726403441067,-420.0,0.0002656,2]
[338232621,1726403441078,-158.44,0.000266,31]
[338232624,1726403441089,-158.44,0.000266,31]
[338232626,1726403441100,-290.885884,0.00026823,2]
[338232628,1726403441112,-845.286893,0.00026823,2]
[338232630,1726403441122,-436.328826,0.00026823,2]
[338232632,1726403441131,-157.09926174,0.00026931,2]
[338232634,1726403441141,-1000.0,0.00027,2]
[338232636,1726403441150,-150.0,0.00027,2]
[338232638,1726403441172,-4370.82,0.00027,30]
[338232641,1726403441181,-2000.0,0.00027,3]
[338232643,1726403441190,-2000.0,0.000271,5]
[338232645,1726403441201,-290.885884,0.00027154,2]
[338232647,1726403441210,-845.286893,0.00027154,2]
[338232649,1726403441219,-436.328826,0.00027154,2]
[338232650,1726403441229,-171.0,0.00027185,2]
[338232652,1726403441239,-2000.0,0.000272,7]
[338232655,1726403441249,-500.0,0.00027229,10]
[338232657,1726403441258,-500.0,0.00027229,10]
[338232659,1726403441267,-500.0,0.00027229,10]
[338232661,1726403441277,-2800.45,0.0002729,3]
[338232663,1726403441287,-1745.26851933,0.00027297,2]
[338232665,1726403441296,-2000.0,0.000273,7]
[338232667,1726403441306,-8654.52,0.000273,2]
[338232669,1726403441315,-11288.62146147,0.000273,2]
[338232739,1726403443600,-2886.1847173,0.000273,2]
[338232740,1726403443714,-12923.73382123,0.000273,2]
[338232741,1726403443726,-27098.54,0.000273,2]
[338232742,1726403443736,-9027.01341537,0.000273,2]
[338232752,1726403446572,-736.87080341,0.000273,2]
[338232753,1726403446634,-734.3,0.000273,2]
[338232754,1726403446690,-16600.35578122,0.000273,2]
[338232755,1726403446701,-157.0,0.0002734,16]
[338232756,1726403446712,-164551.251173,0.00027357,4]
[338232757,1726403446722,-37684.1712121,0.00027357,4]
[338232758,1726403446732,-500.0,0.00027366,2]
[338232759,1726403446743,-164.49743136,0.00027366,2]
[338232760,1726403446755,-500.0,0.00027366,2]
[338232761,1726403446765,-372.92214344,0.00027366,2]
[338232762,1726403446776,-54850.4170578,0.00027367,4]
[338232763,1726403446786,-12561.390404,0.00027367,4]
[338232764,1726403446797,-500.0,0.00027373,2]
[338232765,1726403446809,-10793.98,0.00027376,2]
[338232766,1726403446819,-27425.2085289,0.00027377,4]
[338232767,1726403446829,-12561.390404,0.00027377,4]
[338232768,1726403446838,-1976.66143995,0.00027387,5]
[338232769,1726403446850,-6280.69520202,0.00027387,4]
[338232770,1726403446859,-158.43621399,0.00027387,7]
[338232771,1726403446868,-56526.2568182,0.00027387,4]
[338232772,1726403446878,-150.01,0.00027396,2]
[338232773,1726403446887,-369.05983504,0.00027396,2]
[338232774,1726403446896,-19004.90465816,0.00027397,5]
[338232775,1726403446905,-153.064046,0.00027397,7]
[338232776,1726403446917,-523.04357253,0.00027397,5]
[338232777,1726403446928,-151.0,0.00027397,7]
[338232778,1726403446939,-151.0,0.00027397,7]
[338232779,1726403446950,-151.0,0.00027397,7]
[338232780,1726403446961,-500.0,0.00027397,5]
[338232781,1726403446972,-500.0,0.00027397,5]
[338232782,1726403446983,-500.0,0.00027397,5]
[338232783,1726403446995,-500.0,0.00027397,5]
[338232784,1726403447005,-500.0,0.00027397,5]
[338232785,1726403447016,-151.0,0.00027397,7]
[338232786,1726403447025,-151.0,0.00027397,7]
[338232787,1726403447036,-151.0,0.00027397,7]
[338232788,1726403447047,-151.0,0.00027397,7]
[338232789,1726403447058,-151.0,0.00027397,7]
[338232790,1726403447068,-151.0,0.00027397,7]